[Event "*** Titled Tuesday Blitz"]
[Site "Chess.com"]
[Date "2019.02.05"]
[Round "9"]
[White "Lion_DL"]
[Black "Romn69"]
[Result "1-0"]
[WhiteElo "2412"]
[BlackElo "2243"]
[TimeControl "180+2"]
[EndTime "15:10:19 PST"]
[Termination "Lion_DL won by resignation"]

1. e4 {[%clk 0:02:46.6]} 1... c5 {[%clk 0:03:00.2]} 2. Nf3 {[%clk 0:02:47.2]}
2... Nc6 {[%clk 0:03:00.8]} 3. Bb5 {[%clk 0:02:48]} 3... g6 {[%clk 0:03:01]} 4.
O-O {[%clk 0:02:48.1]} 4... Bg7 {[%clk 0:03:01.1]} 5. c3 {[%clk 0:02:49.1]} 5...
Nf6 {[%clk 0:03:01]} 6. d4 {[%clk 0:02:49.7]} 6... cxd4 {[%clk 0:02:58.5]} 7.
cxd4 {[%clk 0:02:50.6]} 7... Nxe4 {[%clk 0:02:58.8]} 8. d5 {[%clk 0:02:51.5]}
8... Nd6 {[%clk 0:02:59.2]} 9. Na3 {[%clk 0:02:51.5]} 9... Nb8 {[%clk
0:02:44.5]} 10. Re1 {[%clk 0:02:34.4]} 10... Nxb5 {[%clk 0:02:24.5]} 11. Nxb5
{[%clk 0:02:34.3]} 11... d6 {[%clk 0:02:25.2]} 12. Qe2 {[%clk 0:02:19.3]} 12...
Bg4 {[%clk 0:02:21.1]} 13. Qc4 {[%clk 0:02:08.8]} 13... Bxf3 {[%clk 0:01:52.2]}
14. Nc7+ {[%clk 0:02:09.3]} 14... Kf8 {[%clk 0:01:52.5]} 15. Bg5 {[%clk
0:02:09.6]} 15... Bf6 {[%clk 0:01:38.3]} 16. Bxf6 {[%clk 0:01:49.7]} 16... exf6
{[%clk 0:01:38.1]} 17. Re8+ {[%clk 0:01:50.9]} 17... Qxe8 {[%clk 0:01:35.2]} 18.
Nxe8 {[%clk 0:01:52.2]} 18... Nd7 {[%clk 0:01:09.2]} 19. Nxd6 {[%clk 0:01:39.4]}
19... Bh5 {[%clk 0:01:06.7]} 20. Qc7 {[%clk 0:01:36.9]} 20... Ne5 {[%clk
0:00:54]} 21. f4 {[%clk 0:01:36.2]} 1-0

[Event "*** Titled Tuesday Blitz"]
[Site "Chess.com"]
[Date "2019.02.05"]
[Round "9"]
[White "idvidal"]
[Black "AbdAlAgathos"]
[Result "1-0"]
[WhiteElo "2465"]
[BlackElo "2334"]
[TimeControl "180+2"]
[EndTime "15:10:28 PST"]
[Termination "idvidal won by resignation"]

1. d4 {[%clk 0:03:01.9]} 1... f5 {[%clk 0:03:00.3]} 2. Bg5 {[%clk 0:02:56.9]}
2... g6 {[%clk 0:03:00.7]} 3. Nf3 {[%clk 0:02:35.3]} 3... Bg7 {[%clk 0:02:53.8]}
4. e3 {[%clk 0:02:31.1]} 4... Nf6 {[%clk 0:02:53.3]} 5. c4 {[%clk 0:02:29.3]}
5... O-O {[%clk 0:02:52.3]} 6. Nc3 {[%clk 0:02:29.6]} 6... d6 {[%clk 0:02:51.6]}
7. Be2 {[%clk 0:02:26.9]} 7... Kh8 {[%clk 0:02:49.3]} 8. O-O {[%clk 0:02:22.3]}
8... Be6 {[%clk 0:02:46.3]} 9. d5 {[%clk 0:02:22.3]} 9... Bg8 {[%clk 0:02:47.3]}
10. Nd4 {[%clk 0:02:17]} 10... c5 {[%clk 0:02:36.4]} 11. Nb3 {[%clk 0:01:49.4]}
11... h6 {[%clk 0:02:17.9]} 12. Bh4 {[%clk 0:01:47.1]} 12... Nbd7 {[%clk
0:02:11.4]} 13. Nd2 {[%clk 0:01:46.6]} 13... a6 {[%clk 0:01:52]} 14. Qc2 {[%clk
0:01:42.3]} 14... Rb8 {[%clk 0:01:50.6]} 15. a4 {[%clk 0:01:41.6]} 15... e5
{[%clk 0:01:38.8]} 16. dxe6 {[%clk 0:01:39.9]} 16... Bxe6 {[%clk 0:01:38.8]} 17.
Rad1 {[%clk 0:01:33]} 17... Qe8 {[%clk 0:01:35.3]} 18. Nf3 {[%clk 0:01:12.1]}
18... Qf7 {[%clk 0:01:21.5]} 19. Rxd6 {[%clk 0:01:01.4]} 19... Bxc4 {[%clk
0:01:21]} 20. Bxf6 {[%clk 0:01:02]} 20... Nxf6 {[%clk 0:01:18.6]} 21. Ne5 {[%clk
0:01:00.7]} 21... Qe7 {[%clk 0:01:10.7]} 22. Nxg6+ {[%clk 0:00:59.9]} 1-0

[Event "*** Titled Tuesday Blitz"]
[Site "Chess.com"]
[Date "2019.02.05"]
[Round "9"]
[White "GrandGlacier"]
[Black "Jospem"]
[Result "0-1"]
[WhiteElo "2206"]
[BlackElo "2866"]
[TimeControl "180+2"]
[EndTime "15:10:37 PST"]
[Termination "Jospem won by resignation"]

1. e4 {[%clk 0:03:01]} 1... c5 {[%clk 0:03:00.9]} 2. Nf3 {[%clk 0:02:59.9]} 2...
d6 {[%clk 0:03:02.3]} 3. d4 {[%clk 0:03:01.5]} 3... cxd4 {[%clk 0:03:04.2]} 4.
Nxd4 {[%clk 0:03:03.3]} 4... Nf6 {[%clk 0:03:06.1]} 5. Nc3 {[%clk 0:03:03.1]}
5... a6 {[%clk 0:03:07.8]} 6. h3 {[%clk 0:03:04.4]} 6... e5 {[%clk 0:03:07.5]}
7. Nde2 {[%clk 0:03:05.5]} 7... h5 {[%clk 0:03:08]} 8. Bg5 {[%clk 0:03:03.2]}
8... Be6 {[%clk 0:03:09.4]} 9. g3 {[%clk 0:02:53.9]} 9... Nbd7 {[%clk
0:03:06.7]} 10. Bg2 {[%clk 0:02:54.1]} 10... b5 {[%clk 0:03:08]} 11. O-O {[%clk
0:02:53.5]} 11... Be7 {[%clk 0:03:06.9]} 12. f4 {[%clk 0:02:47.8]} 12... Rc8
{[%clk 0:02:56.5]} 13. Nd5 {[%clk 0:02:11]} 13... Bxd5 {[%clk 0:02:57.4]} 14.
exd5 {[%clk 0:02:10.8]} 14... O-O {[%clk 0:02:58.8]} 15. fxe5 {[%clk 0:02:06.9]}
15... Nxe5 {[%clk 0:02:59.7]} 16. Nf4 {[%clk 0:02:04.6]} 16... g6 {[%clk
0:02:59.9]} 17. Bh6 {[%clk 0:02:00.5]} 17... Re8 {[%clk 0:02:57]} 18. Nd3 {[%clk
0:01:56]} 18... Qb6+ {[%clk 0:02:41.8]} 19. Kh1 {[%clk 0:01:54.5]} 19... Nfd7
{[%clk 0:02:41.6]} 20. a4 {[%clk 0:01:44.8]} 20... bxa4 {[%clk 0:02:35.1]} 21.
Rxa4 {[%clk 0:01:42.8]} 21... Nxd3 {[%clk 0:02:29.6]} 22. Qxd3 {[%clk
0:01:38.4]} 22... Ne5 {[%clk 0:02:29.6]} 23. Qxa6 {[%clk 0:01:36.8]} 23... Qxb2
{[%clk 0:02:29]} 24. Re4 {[%clk 0:01:09.7]} 24... Rxc2 {[%clk 0:02:09.9]} 25.
Qa4 {[%clk 0:01:05.9]} 25... Rec8 {[%clk 0:02:05]} 26. Qa7 {[%clk 0:00:44.4]}
26... Rxg2 {[%clk 0:01:58.9]} 0-1

[Event "*** Titled Tuesday Blitz"]
[Site "Chess.com"]
[Date "2019.02.05"]
[Round "9"]
[White "MartinMatthiesen"]
[Black "AryanTari"]
[Result "0-1"]
[WhiteElo "2507"]
[BlackElo "2803"]
[TimeControl "180+2"]
[EndTime "15:11:13 PST"]
[Termination "AryanTari won by resignation"]

1. d4 {[%clk 0:03:01.2]} 1... d5 {[%clk 0:02:59.6]} 2. c4 {[%clk 0:03:01.7]}
2... dxc4 {[%clk 0:03:01.5]} 3. e3 {[%clk 0:03:00.2]} 3... e5 {[%clk 0:03:01.5]}
4. Bxc4 {[%clk 0:03:00.8]} 4... Nc6 {[%clk 0:03:02.8]} 5. Nf3 {[%clk 0:02:51.4]}
5... e4 {[%clk 0:03:02]} 6. Nfd2 {[%clk 0:02:50.1]} 6... Qg5 {[%clk 0:03:02.6]}
7. Nxe4 {[%clk 0:02:40.7]} 7... Qxg2 {[%clk 0:03:01.5]} 8. Ng3 {[%clk
0:02:41.5]} 8... Nf6 {[%clk 0:02:53.9]} 9. Nc3 {[%clk 0:02:37.6]} 9... Bb4
{[%clk 0:02:53.9]} 10. Bd2 {[%clk 0:02:29.4]} 10... Bxc3 {[%clk 0:02:43.1]} 11.
Bxc3 {[%clk 0:02:06.8]} 11... Ne4 {[%clk 0:02:35.5]} 12. Rf1 {[%clk 0:01:43]}
12... Nxc3 {[%clk 0:02:30.8]} 13. bxc3 {[%clk 0:01:43.4]} 13... O-O {[%clk
0:02:16.4]} 14. Qh5 {[%clk 0:01:29.8]} 14... g6 {[%clk 0:02:16.5]} 15. Qd5
{[%clk 0:01:29.5]} 15... Bh3 {[%clk 0:02:14.1]} 16. Qxg2 {[%clk 0:01:16]} 16...
Bxg2 {[%clk 0:02:16]} 17. Rg1 {[%clk 0:01:17.6]} 17... Bf3 {[%clk 0:02:14.8]}
18. Rb1 {[%clk 0:01:12.5]} 18... Rad8 {[%clk 0:02:07.4]} 19. Be2 {[%clk
0:01:01.9]} 19... Bxe2 {[%clk 0:02:07.4]} 20. Nxe2 {[%clk 0:01:02.9]} 20... b6
{[%clk 0:02:04.4]} 21. h4 {[%clk 0:01:03.6]} 21... Na5 {[%clk 0:02:02.5]} 22.
Nf4 {[%clk 0:01:02.4]} 22... Nc4 {[%clk 0:02:02]} 23. Ke2 {[%clk 0:01:03.2]}
23... Rfe8 {[%clk 0:02:02.4]} 24. h5 {[%clk 0:01:02.8]} 24... Kg7 {[%clk
0:02:03.4]} 25. Rg4 {[%clk 0:01:01.5]} 25... Nd6 {[%clk 0:02:04.2]} 26. Rh1
{[%clk 0:00:59.9]} 26... Ne4 {[%clk 0:02:04.4]} 27. c4 {[%clk 0:00:56]} 27...
Nf6 {[%clk 0:01:57.3]} 28. Rgg1 {[%clk 0:00:28]} 28... Rxd4 {[%clk 0:01:56.6]}
29. c5 {[%clk 0:00:14.6]} 29... Rxf4 {[%clk 0:01:55]} 0-1

[Event "*** Titled Tuesday Blitz"]
[Site "Chess.com"]
[Date "2019.02.05"]
[Round "9"]
[White "albi1999"]
[Black "TST2014"]
[Result "1/2-1/2"]
[WhiteElo "2498"]
[BlackElo "2520"]
[TimeControl "180+2"]
[EndTime "15:11:13 PST"]
[Termination "Game drawn by repetition"]

1. d4 {[%clk 0:03:01.9]} 1... Nf6 {[%clk 0:02:58.2]} 2. c4 {[%clk 0:03:03]} 2...
g6 {[%clk 0:02:58.3]} 3. g3 {[%clk 0:03:04.2]} 3... Bg7 {[%clk 0:02:57.6]} 4.
Bg2 {[%clk 0:03:05.7]} 4... O-O {[%clk 0:02:58.8]} 5. Nc3 {[%clk 0:03:06.9]}
5... d6 {[%clk 0:02:59.6]} 6. Nf3 {[%clk 0:03:07.9]} 6... c5 {[%clk 0:02:59.2]}
7. O-O {[%clk 0:03:08.6]} 7... Nc6 {[%clk 0:02:58.9]} 8. dxc5 {[%clk 0:03:08.8]}
8... dxc5 {[%clk 0:02:59.7]} 9. Bf4 {[%clk 0:03:10.7]} 9... Be6 {[%clk
0:02:45.3]} 10. Ne5 {[%clk 0:03:07.8]} 10... Nxe5 {[%clk 0:02:40.9]} 11. Bxe5
{[%clk 0:03:09.7]} 11... Qc8 {[%clk 0:02:36.5]} 12. Qb3 {[%clk 0:03:05.5]} 12...
Ng4 {[%clk 0:01:49.7]} 13. Bxb7 {[%clk 0:02:45.8]} 13... Bxc4 {[%clk 0:01:45.8]}
14. Bxg7 {[%clk 0:02:40.5]} 14... Bxb3 {[%clk 0:01:42.6]} 15. Bxc8 {[%clk
0:02:40.3]} 15... Rfxc8 {[%clk 0:01:41.7]} 16. axb3 {[%clk 0:02:21.6]} 16...
Kxg7 {[%clk 0:01:39.2]} 17. Ra5 {[%clk 0:02:23.2]} 17... a6 {[%clk 0:01:28]} 18.
Rfa1 {[%clk 0:02:23]} 18... Rc6 {[%clk 0:01:22.4]} 19. Ne4 {[%clk 0:02:21.5]}
19... c4 {[%clk 0:01:12.7]} 20. bxc4 {[%clk 0:02:16]} 20... Rxc4 {[%clk
0:01:13.5]} 21. f3 {[%clk 0:02:17]} 21... Nf6 {[%clk 0:01:10.3]} 22. Nxf6 {[%clk
0:02:11.8]} 22... exf6 {[%clk 0:01:11.5]} 23. Kf2 {[%clk 0:02:07.9]} 23... Rb4
{[%clk 0:01:11.7]} 24. R1a2 {[%clk 0:02:06.6]} 24... Rab8 {[%clk 0:01:11.7]} 25.
Rxa6 {[%clk 0:02:07.6]} 25... Rxb2 {[%clk 0:01:12.4]} 26. Rxb2 {[%clk
0:02:09.5]} 26... Rxb2 {[%clk 0:01:12.7]} 27. h4 {[%clk 0:02:09.8]} 27... h5
{[%clk 0:01:11.7]} 28. Ra4 {[%clk 0:02:09.9]} 28... f5 {[%clk 0:01:12.5]} 29.
Ra6 {[%clk 0:02:09.5]} 29... Rc2 {[%clk 0:01:12.6]} 30. Ra4 {[%clk 0:02:09.4]}
30... Rc1 {[%clk 0:01:12.8]} 31. Ra3 {[%clk 0:02:10.2]} 31... Rh1 {[%clk
0:01:12.9]} 32. Kg2 {[%clk 0:02:10.6]} 32... Re1 {[%clk 0:01:13.7]} 33. Kf2
{[%clk 0:02:11.6]} 33... Rb1 {[%clk 0:01:14]} 34. Rd3 {[%clk 0:02:12.2]} 34...
Kf6 {[%clk 0:01:14.9]} 35. Rd6+ {[%clk 0:02:11.8]} 35... Ke5 {[%clk 0:01:15.2]}
36. Rc6 {[%clk 0:02:10.8]} 36... Rh1 {[%clk 0:01:07.2]} 37. Kg2 {[%clk
0:02:06.1]} 37... Re1 {[%clk 0:01:07.4]} 38. Kf2 {[%clk 0:02:06.2]} 38... Rh1
{[%clk 0:01:08.2]} 39. Kg2 {[%clk 0:01:53.3]} 39... Re1 {[%clk 0:01:08.6]} 40.
Kf2 {[%clk 0:01:54]} 40... Rh1 {[%clk 0:01:08.1]} 1/2-1/2

[Event "*** Titled Tuesday Blitz"]
[Site "Chess.com"]
[Date "2019.02.05"]
[Round "9"]
[White "gmcorrales"]
[Black "LyonBeast"]
[Result "0-1"]
[WhiteElo "2765"]
[BlackElo "2916"]
[TimeControl "180+2"]
[EndTime "15:11:17 PST"]
[Termination "LyonBeast won by resignation"]

1. e4 {[%clk 0:03:01.9]} 1... c5 {[%clk 0:02:59.9]} 2. Nf3 {[%clk 0:03:02.9]}
2... d6 {[%clk 0:03:01.6]} 3. d4 {[%clk 0:03:02.3]} 3... cxd4 {[%clk 0:03:03.5]}
4. Nxd4 {[%clk 0:03:04]} 4... Nf6 {[%clk 0:03:05]} 5. Nc3 {[%clk 0:03:05.4]}
5... a6 {[%clk 0:03:06.9]} 6. h3 {[%clk 0:03:03]} 6... e5 {[%clk 0:03:06.7]} 7.
Nb3 {[%clk 0:03:02.1]} 7... Be6 {[%clk 0:03:00.8]} 8. f4 {[%clk 0:03:02.8]} 8...
g6 {[%clk 0:02:58.9]} 9. g4 {[%clk 0:02:53.6]} 9... exf4 {[%clk 0:02:43]} 10.
Bxf4 {[%clk 0:02:53.6]} 10... Nh5 {[%clk 0:02:44.1]} 11. Be3 {[%clk 0:02:40.6]}
11... Ng3 {[%clk 0:02:41.8]} 12. Qd4 {[%clk 0:02:29.6]} 12... Nxh1 {[%clk
0:02:29.2]} 13. Qxh8 {[%clk 0:02:30.2]} 13... Qh4+ {[%clk 0:02:30.6]} 14. Kd2
{[%clk 0:02:28.9]} 14... Nc6 {[%clk 0:02:32]} 15. Nd5 {[%clk 0:02:15.4]} 15...
O-O-O {[%clk 0:02:14.2]} 16. Bxa6 {[%clk 0:01:57.8]} 16... Ng3 {[%clk
0:01:50.9]} 17. Bd3 {[%clk 0:01:31.3]} 17... Qxh3 {[%clk 0:01:51.7]} 18. Qf6
{[%clk 0:01:17.5]} 18... Qg2+ {[%clk 0:01:49.6]} 19. Qf2 {[%clk 0:01:02.7]}
19... Nxe4+ {[%clk 0:01:45.3]} 20. Bxe4 {[%clk 0:01:03.7]} 20... Qxe4 {[%clk
0:01:47.2]} 21. Nb6+ {[%clk 0:01:04.6]} 21... Kb8 {[%clk 0:01:48.1]} 22. Re1
{[%clk 0:01:03.4]} 22... Qxg4 {[%clk 0:01:45.3]} 23. Kc1 {[%clk 0:01:02.9]}
23... Bg7 {[%clk 0:01:42.5]} 24. Kb1 {[%clk 0:00:55]} 24... Qf5 {[%clk
0:01:37.3]} 25. Qd2 {[%clk 0:00:55.3]} 25... h5 {[%clk 0:01:29.4]} 26. Nc5
{[%clk 0:00:46.1]} 26... dxc5 {[%clk 0:01:22.4]} 27. Qe2 {[%clk 0:00:39.4]}
27... Qe5 {[%clk 0:01:18.4]} 28. Qb5 {[%clk 0:00:38.7]} 28... Qxe3 {[%clk
0:01:10.5]} 0-1

[Event "*** Titled Tuesday Blitz"]
[Site "Chess.com"]
[Date "2019.02.05"]
[Round "9"]
[White "Parhamov"]
[Black "Genghis_K"]
[Result "0-1"]
[WhiteElo "2960"]
[BlackElo "2848"]
[TimeControl "180+2"]
[EndTime "15:11:23 PST"]
[Termination "Genghis_K won by resignation"]

1. Nf3 {[%clk 0:03:01.2]} 1... Nf6 {[%clk 0:03:00.6]} 2. g3 {[%clk 0:03:02]}
2... g6 {[%clk 0:03:02.2]} 3. b3 {[%clk 0:03:02.8]} 3... Bg7 {[%clk 0:03:02.6]}
4. Bb2 {[%clk 0:03:04.4]} 4... d6 {[%clk 0:03:03.6]} 5. d4 {[%clk 0:02:59.6]}
5... c5 {[%clk 0:03:04]} 6. c4 {[%clk 0:02:52.7]} 6... Ne4 {[%clk 0:03:04.8]} 7.
Bg2 {[%clk 0:02:37.6]} 7... Qa5+ {[%clk 0:03:00.3]} 8. Nfd2 {[%clk 0:02:38.8]}
8... Nxd2 {[%clk 0:03:00.8]} 9. Bc3 {[%clk 0:02:40.2]} 9... Qb6 {[%clk 0:03:02]}
10. dxc5 {[%clk 0:02:40.3]} 10... Nxb1 {[%clk 0:03:03.1]} 11. Bxg7 {[%clk
0:02:38.2]} 11... Qb4+ {[%clk 0:03:03.6]} 12. Kf1 {[%clk 0:02:38.9]} 12... Rg8
{[%clk 0:02:57.5]} 13. Bh6 {[%clk 0:02:30.9]} 13... Na3 {[%clk 0:02:58]} 14.
cxd6 {[%clk 0:02:25]} 14... Qxd6 {[%clk 0:02:50.6]} 15. Qc1 {[%clk 0:02:11.3]}
15... Nc6 {[%clk 0:02:33.8]} 16. Bd2 {[%clk 0:01:43]} 16... Bf5 {[%clk
0:02:13.7]} 17. Bf4 {[%clk 0:01:27.7]} 17... e5 {[%clk 0:01:51.1]} 18. c5 {[%clk
0:01:17.7]} 18... Qe6 {[%clk 0:01:36]} 19. e4 {[%clk 0:01:11.2]} 19... Bh3
{[%clk 0:01:33.2]} 20. Qxa3 {[%clk 0:00:55.1]} 20... Bxg2+ {[%clk 0:01:32.8]}
21. Kxg2 {[%clk 0:00:55.7]} 21... exf4 {[%clk 0:01:34.3]} 22. b4 {[%clk
0:00:52.6]} 22... Qxe4+ {[%clk 0:01:30.9]} 23. Kh3 {[%clk 0:00:53.4]} 23...
O-O-O {[%clk 0:01:22]} 24. b5 {[%clk 0:00:46.3]} 24... Qf5+ {[%clk 0:01:22.4]}
25. Kg2 {[%clk 0:00:44.6]} 25... Rd3 {[%clk 0:01:19.9]} 26. Qc1 {[%clk
0:00:30.5]} 26... f3+ {[%clk 0:01:20]} 27. Kg1 {[%clk 0:00:31.2]} 27... Nd4
{[%clk 0:01:20.3]} 0-1

[Event "*** Titled Tuesday Blitz"]
[Site "Chess.com"]
[Date "2019.02.05"]
[Round "9"]
[White "AlexTruskavetsky"]
[Black "wonderfultime"]
[Result "0-1"]
[WhiteElo "2292"]
[BlackElo "2872"]
[TimeControl "180+2"]
[EndTime "15:11:26 PST"]
[Termination "wonderfultime won on time"]

1. d4 {[%clk 0:03:01.9]} 1... d5 {[%clk 0:03:01]} 2. c4 {[%clk 0:03:00.5]} 2...
c6 {[%clk 0:03:02.4]} 3. Nf3 {[%clk 0:03:00.8]} 3... Nf6 {[%clk 0:03:03.4]} 4.
g3 {[%clk 0:03:01.7]} 4... Bf5 {[%clk 0:03:02.4]} 5. Nh4 {[%clk 0:02:45.7]} 5...
Be4 {[%clk 0:03:01.7]} 6. f3 {[%clk 0:02:46.1]} 6... Bxb1 {[%clk 0:02:47.8]} 7.
Rxb1 {[%clk 0:02:46.4]} 7... e6 {[%clk 0:02:46.3]} 8. Qb3 {[%clk 0:02:43.8]}
8... Qb6 {[%clk 0:02:17.7]} 9. c5 {[%clk 0:02:39.4]} 9... Qxb3 {[%clk
0:02:17.8]} 10. axb3 {[%clk 0:02:39.8]} 10... b6 {[%clk 0:02:19.7]} 11. b4
{[%clk 0:02:34.6]} 11... a5 {[%clk 0:02:08]} 12. Ra1 {[%clk 0:02:34.8]} 12...
Na6 {[%clk 0:02:08]} 13. Bd2 {[%clk 0:02:22.1]} 13... Rb8 {[%clk 0:01:58.4]} 14.
e4 {[%clk 0:02:17.8]} 14... Nxb4 {[%clk 0:01:59.3]} 15. Bxb4 {[%clk 0:02:07.1]}
15... axb4 {[%clk 0:02:01.2]} 16. e5 {[%clk 0:01:48.9]} 16... Nd7 {[%clk
0:02:01.9]} 17. cxb6 {[%clk 0:01:48.3]} 17... Rxb6 {[%clk 0:02:00.4]} 18. Kd2
{[%clk 0:01:41.5]} 18... Be7 {[%clk 0:02:00.9]} 19. Ng2 {[%clk 0:01:41.1]} 19...
O-O {[%clk 0:01:59.3]} 20. f4 {[%clk 0:01:10.4]} 20... c5 {[%clk 0:01:58.9]} 21.
Ra7 {[%clk 0:01:01.1]} 21... Rd8 {[%clk 0:01:59.5]} 22. Be2 {[%clk 0:01:01.7]}
22... Bf8 {[%clk 0:01:48.8]} 23. Rc1 {[%clk 0:00:58.5]} 23... c4 {[%clk
0:01:43.9]} 24. Rca1 {[%clk 0:00:58.6]} 24... Nb8 {[%clk 0:01:39.9]} 25. Rc7
{[%clk 0:00:44.8]} 25... b3 {[%clk 0:01:37.7]} 26. Raa7 {[%clk 0:00:34.7]} 26...
Nc6 {[%clk 0:01:37.3]} 27. Ra1 {[%clk 0:00:14.1]} 27... Nxd4 {[%clk 0:01:38.2]}
0-1

[Event "*** Titled Tuesday Blitz"]
[Site "Chess.com"]
[Date "2019.02.05"]
[Round "9"]
[White "GameOverBro"]
[Black "cool4chess"]
[Result "1-0"]
[WhiteElo "2513"]
[BlackElo "2317"]
[TimeControl "180+2"]
[EndTime "15:11:29 PST"]
[Termination "GameOverBro won by resignation"]

1. e4 {[%clk 0:03:01.9]} 1... e5 {[%clk 0:02:57.2]} 2. Nf3 {[%clk 0:03:02.3]}
2... Nc6 {[%clk 0:02:58.9]} 3. Bb5 {[%clk 0:03:02]} 3... a6 {[%clk 0:03:00.2]}
4. Ba4 {[%clk 0:03:03.1]} 4... Nf6 {[%clk 0:03:01.6]} 5. d4 {[%clk 0:03:03.5]}
5... Nxe4 {[%clk 0:03:00.1]} 6. Qe2 {[%clk 0:03:03.7]} 6... Nf6 {[%clk 0:02:39]}
7. dxe5 {[%clk 0:03:00.6]} 7... Nd5 {[%clk 0:02:40.2]} 8. O-O {[%clk 0:02:49.9]}
8... Be7 {[%clk 0:02:41]} 9. Bb3 {[%clk 0:02:41.6]} 9... Nb6 {[%clk 0:02:38.3]}
10. Nc3 {[%clk 0:02:27.7]} 10... O-O {[%clk 0:02:36.2]} 11. Be3 {[%clk
0:02:22.7]} 11... d6 {[%clk 0:02:23.8]} 12. Rad1 {[%clk 0:02:20.2]} 12... Bg4
{[%clk 0:02:14.1]} 13. exd6 {[%clk 0:02:16.4]} 13... Bxd6 {[%clk 0:01:40.9]} 14.
h3 {[%clk 0:01:53.3]} 14... Bxf3 {[%clk 0:01:17.3]} 15. Qxf3 {[%clk 0:01:53.5]}
15... Nd7 {[%clk 0:01:18.6]} 16. Ne4 {[%clk 0:01:46.7]} 16... Nde5 {[%clk
0:00:58.1]} 17. Qh5 {[%clk 0:01:40.1]} 17... Qe7 {[%clk 0:00:40.3]} 18. Bg5
{[%clk 0:01:11]} 18... Qe8 {[%clk 0:00:11.7]} 19. Rfe1 {[%clk 0:01:05.6]} 19...
Kh8 {[%clk 0:00:09.6]} 20. Nf6 {[%clk 0:01:03.6]} 20... gxf6 {[%clk 0:00:07.1]}
21. Bxf6+ {[%clk 0:01:04.8]} 21... Kg8 {[%clk 0:00:09]} 22. Qh6 {[%clk
0:00:59.8]} 1-0

[Event "*** Titled Tuesday Blitz"]
[Site "Chess.com"]
[Date "2019.02.05"]
[Round "9"]
[White "kintoho"]
[Black "xberli"]
[Result "1-0"]
[WhiteElo "2495"]
[BlackElo "2536"]
[TimeControl "180+2"]
[EndTime "15:11:29 PST"]
[Termination "kintoho won by resignation"]

1. e4 {[%clk 0:03:01.9]} 1... c5 {[%clk 0:03:00.6]} 2. Nf3 {[%clk 0:03:02.2]}
2... d6 {[%clk 0:03:01.8]} 3. Bc4 {[%clk 0:03:02.7]} 3... e6 {[%clk 0:02:59.1]}
4. d3 {[%clk 0:03:03.7]} 4... a6 {[%clk 0:02:58.9]} 5. Bb3 {[%clk 0:03:03.5]}
5... Be7 {[%clk 0:02:57.9]} 6. c3 {[%clk 0:03:04.8]} 6... Nf6 {[%clk 0:02:58.6]}
7. O-O {[%clk 0:03:05.7]} 7... O-O {[%clk 0:02:59.7]} 8. Re1 {[%clk 0:03:07.2]}
8... e5 {[%clk 0:02:58.5]} 9. Nbd2 {[%clk 0:03:03.9]} 9... Qc7 {[%clk 0:02:59]}
10. Nf1 {[%clk 0:03:04.7]} 10... Nbd7 {[%clk 0:02:57.6]} 11. Ng3 {[%clk
0:03:00]} 11... g6 {[%clk 0:02:57.6]} 12. h3 {[%clk 0:02:58.5]} 12... b5 {[%clk
0:02:54.3]} 13. Bh6 {[%clk 0:02:55]} 13... Re8 {[%clk 0:02:47.9]} 14. Ng5 {[%clk
0:02:55.7]} 14... c4 {[%clk 0:02:48.2]} 15. dxc4 {[%clk 0:02:55]} 15... bxc4
{[%clk 0:02:50.1]} 16. Ba4 {[%clk 0:02:54.8]} 16... Bb7 {[%clk 0:02:46.3]} 17.
Qf3 {[%clk 0:02:54.5]} 17... Nc5 {[%clk 0:02:37.2]} 18. Bxe8 {[%clk 0:02:54.2]}
18... Rxe8 {[%clk 0:02:39.1]} 19. Nf1 {[%clk 0:02:38.8]} 19... Nd3 {[%clk
0:02:35.1]} 20. Re2 {[%clk 0:02:38.9]} 20... d5 {[%clk 0:02:34]} 21. Nd2 {[%clk
0:02:35.3]} 21... Nf4 {[%clk 0:02:25.9]} 22. Ree1 {[%clk 0:02:32.5]} 22... Bc5
{[%clk 0:02:21.7]} 23. g3 {[%clk 0:02:25.9]} 23... dxe4 {[%clk 0:02:22.4]} 24.
Ndxe4 {[%clk 0:02:22.2]} 24... Nxe4 {[%clk 0:02:22.4]} 25. Nxe4 {[%clk
0:02:23.3]} 25... Nd3 {[%clk 0:02:20]} 26. Qf6 {[%clk 0:02:18.9]} 26... Bf8
{[%clk 0:02:16.9]} 27. Bxf8 {[%clk 0:02:18.3]} 27... Rxf8 {[%clk 0:02:18.8]} 28.
Re2 {[%clk 0:02:14.6]} 28... Qc6 {[%clk 0:02:10.6]} 29. f3 {[%clk 0:02:15.2]}
29... Qxf6 {[%clk 0:02:08.2]} 30. Nxf6+ {[%clk 0:02:16]} 30... Kg7 {[%clk
0:02:09.7]} 31. Ne4 {[%clk 0:02:10.1]} 31... f5 {[%clk 0:02:06.9]} 32. Nf2
{[%clk 0:02:11.3]} 32... e4 {[%clk 0:02:03.6]} 33. fxe4 {[%clk 0:02:11.4]} 33...
fxe4 {[%clk 0:02:05.2]} 34. Nxe4 {[%clk 0:02:11.1]} 34... Rf3 {[%clk 0:02:01.8]}
35. Nd6 {[%clk 0:01:57.9]} 35... Bd5 {[%clk 0:01:56.5]} 36. Kh2 {[%clk 0:01:54]}
36... Kh6 {[%clk 0:01:42.7]} 37. b3 {[%clk 0:01:53.6]} 37... cxb3 {[%clk
0:01:39.9]} 38. axb3 {[%clk 0:01:54.8]} 38... Nc5 {[%clk 0:01:41.1]} 39. c4
{[%clk 0:01:53.9]} 39... Nxb3 {[%clk 0:01:37.7]} 40. Rxa6 {[%clk 0:01:52.4]}
40... Bg8 {[%clk 0:01:25.3]} 41. Re8 {[%clk 0:01:53]} 41... Rf2+ {[%clk
0:01:20.3]} 42. Kg1 {[%clk 0:01:54.1]} 42... Rd2 {[%clk 0:01:21.2]} 43. Rxg8
{[%clk 0:01:53.5]} 43... Nd4 {[%clk 0:01:20.8]} 44. Nf7+ {[%clk 0:01:46.6]}
44... Kh5 {[%clk 0:01:21.7]} 45. Ra5+ {[%clk 0:01:47.8]} 45... Nf5 {[%clk
0:01:22.5]} 46. g4+ {[%clk 0:01:49.1]} 46... Kh4 {[%clk 0:01:23.9]} 47. gxf5
{[%clk 0:01:50.3]} 47... Kg3 {[%clk 0:01:24.9]} 48. Kf1 {[%clk 0:01:50.8]} 48...
Rf2+ {[%clk 0:01:21.2]} 49. Ke1 {[%clk 0:01:51.6]} 49... Rf4 {[%clk 0:01:21.9]}
50. fxg6 {[%clk 0:01:51.1]} 1-0